bitfinex-derivatives/quotes_ETHF0:USTF0_20250214
["timestamp","ask_amount","ask_price","bid_price","bid_amount"]
[1739513584880,0.74036,2701.0,2700.6,1.6579]
[1739513585085,3.2078,2701.1,2700.6,2.39836]
[1739513585282,3.21331168,2701.1,2700.6,1.6579]
[1739513585684,0.00551168,2701.1,2700.7,2.90637538]
[1739513585988,0.00551168,2701.1,2700.9,3.94816]
[1739513586186,0.00551168,2701.1,2701.0,0.74036]
[1739513587085,0.74043,2700.8,2700.6,1.1018]
[1739513588491,0.74039,2700.9,2700.6,1.1018]
[1739513588686,0.00551168,2701.1,2701.0,0.74036]
[1739513588883,0.74025,2701.4,2701.0,0.74034]
[1739513589084,4.3595,2701.7,2701.1,0.5408]
[1739513589295,0.74021,2701.6,2701.2,0.5452]
[1739513589480,4.3595,2701.7,2701.2,0.5452]
[1739513589686,0.74028,2701.3,2701.2,0.5452]
[1739513589991,0.74028,2701.3,2701.2,0.00555453]
[1739513590690,3.94806,2701.4,2701.2,0.00555453]
[1739513590892,3.2078,2701.4,2701.2,0.00555453]
[1739513591086,2.37024,2701.5,2701.2,0.00555453]
[1739513591386,4.3595,2701.7,2701.2,0.00555453]
[1739513591583,5.9905,2701.7,2701.2,0.00555453]
[1739513591784,0.74021,2701.6,2701.2,0.74583453]
[1739513591984,0.74021,2701.6,2701.2,0.00555453]
[1739513592186,0.74021,2701.6,2701.3,0.74028]
[1739513592385,5.9905,2701.7,2701.2,0.00555453]
[1739513592594,0.74021,2701.6,2701.2,0.00555453]
[1739513592793,5.9905,2701.7,2701.2,0.74585453]
[1739513593090,0.74023,2701.5,2701.2,0.74584453]
[1739513593291,5.09968,2701.7,2701.2,0.74584453]
[1739513593989,5.09968,2701.7,2701.4,0.74024]
[1739513594188,5.09968,2701.7,2701.2,0.00555453]
[1739513594189,4.3595,2701.7,2701.5,0.74022]
[1739513594485,2.90637538,2702.0,2701.2,0.00555453]
[1739513594486,3.2078,2702.0,2701.4,3.2078]
[1739513594792,4.8388,2702.0,2701.8,0.74012]
[1739513595094,4.8388,2702.0,2701.8,0.74014]
[1739513595288,4.8388,2702.0,2701.6,0.29022104]
[1739513595492,4.8388,2702.0,2701.9,0.74011]
[1739513595890,3.2078,2702.0,2701.9,0.74011]
[1739513596090,3.2078,2702.0,2701.9,3.64648538]
[1739513596392,3.2078,2702.0,2701.9,4.20598538]
[1739513596786,1.87075,2702.5,2702.3,0.73999]
[1739513596787,1.1308,2702.5,2702.3,0.73999]
[1739513597387,7.74517538,2702.9,2702.2,2.90637538]
[1739513597591,0.73988,2702.8,2702.2,2.90637538]
[1739513597992,0.5593,2702.7,2702.4,0.73996]
[1739513598291,0.73996,2702.5,2702.3,0.5712]
[1739513598487,0.73997,2702.4,2702.3,0.5712]
[1739513598795,0.5715,2702.6,2702.3,0.5712]
[1739513599098,0.5715,2702.6,2702.4,0.73997]
[1739513599693,0.5715,2702.6,2702.3,1.31119]
[1739513599888,0.5715,2702.6,2702.3,0.5712]
[1739513600498,0.5715,2702.6,2702.4,0.73996]
[1739513600699,0.73995,2702.5,2702.3,0.5712]
[1739513601199,0.74,2702.4,2702.0,0.74006]
[1739513601395,3.7793,2702.6,2702.0,0.74006]
[1739513601697,3.7793,2702.6,2701.9,4.03987538]
[1739513601885,0.73998,2702.4,2702.1,0.74003]
[1739513602695,3.7793,2702.6,2701.9,4.03987538]
[1739513602896,3.7793,2702.6,2702.0,0.74008]
[1739513603097,0.74001,2702.3,2701.9,4.03987538]
[1739513603298,3.7793,2702.6,2701.9,4.03987538]
[1739513603498,3.7793,2702.6,2702.1,0.74004]
[1739513603793,0.74001,2702.3,2701.9,4.03987538]
[1739513603999,0.74001,2702.3,2702.0,0.74007]
[1739513604195,4.3283,2702.6,2701.9,4.03987538]
[1739513604600,0.74003,2702.2,2702.0,0.74007]
[1739513605103,0.74003,2702.2,2701.9,4.03987538]
[1739513605401,0.74003,2702.2,2701.9,4.77996538]
[1739513605904,7.23467538,2702.6,2701.9,1.1335]
[1739513606199,3.2078,2702.3,2701.9,0.574]
[1739513606501,0.74007,2702.1,2701.9,0.574]
[1739513607399,1.28994,2702.2,2702.0,0.74007]
[1739513607589,1.28994,2702.2,2701.8,0.5689]
[1739513607794,1.28994,2702.2,2701.9,0.74009]
[1739513608106,0.5499,2702.2,2701.9,0.74009]
[1739513608297,0.74006,2702.1,2701.9,0.74009]
[1739513608492,0.5499,2702.2,2701.8,0.5689]
[1739513608896,1.28994,2702.2,2701.9,0.74009]
[1739513609200,0.5499,2702.2,2701.9,0.74009]
[1739513609396,0.74006,2702.1,2701.9,0.74009]
[1739513609602,1.28994,2702.2,2702.0,0.74007]
[1739513609898,0.74006,2702.1,2701.9,0.74009]
[1739513611795,0.5499,2702.2,2701.8,0.5689]
[1739513612001,0.74011,2701.9,2701.7,3.2078]
[1739513612303,0.5508,2701.8,2701.7,3.2078]
[1739513612605,0.5508,2701.8,2701.7,3.94797]
[1739513615507,0.5873,2702.0,2701.7,3.2078]
[1739513615706,0.5873,2702.0,2701.9,0.74011]
[1739513616109,1.29854,2702.2,2702.0,0.74007]
[1739513616302,1.85554,2702.2,2702.0,0.74007]
[1739513617709,1.85555,2702.2,2702.0,0.74007]
[1739513618411,1.85555,2702.2,2701.9,0.7401]
[1739513618607,0.74009,2702.0,2701.8,1.1409]
[1739513618908,0.74009,2702.0,2701.8,1.88102]
[1739513619109,1.1155,2702.2,2701.7,3.2078]
[1739513619311,0.74014,2701.8,2701.7,3.2078]
[1739513621309,0.74014,2701.8,2701.7,3.94797]
[1739513622711,0.74014,2701.8,2701.7,3.2078]
[1739513624307,0.74013,2701.9,2701.7,3.2078]
[1739513624608,0.74013,2701.9,2701.7,3.94795]
[1739513624806,0.5628,2702.1,2701.6,3.20768191]
[1739513625008,0.74015,2701.8,2701.6,3.20768191]
[1739513625210,3.2078,2702.0,2701.6,3.94786191]
[1739513625508,0.74017,2701.7,2701.6,3.94787191]
[1739513628212,3.2078,2702.0,2701.6,3.94787191]
[1739513628417,0.74016,2701.8,2701.6,3.94787191]
[1739513629716,3.2078,2702.0,2701.6,3.94787191]
[1739513630015,0.74017,2701.7,2701.6,3.94787191]
[1739513630409,0.74017,2701.7,2701.6,3.20768191]
[1739513630609,0.74017,2701.7,2701.6,0.30130653]
[1739513630808,3.2078,2702.0,2701.5,0.5644]
[1739513631014,0.74016,2701.8,2701.6,0.74018]
[1739513631715,3.2078,2702.0,2701.6,0.74018]
[1739513631914,0.74016,2701.8,2701.6,0.74018]
[1739513632414,0.74016,2701.8,2701.6,1.03434359]
[1739513632613,0.74017,2701.7,2701.6,1.03434359]
[1739513632810,0.74017,2701.7,2701.6,0.29416359]
[1739513633012,0.74019,2701.6,2701.5,0.5644]
[1739513633413,0.74018,2701.7,2701.5,1.30461]
[1739513633618,0.74019,2701.6,2701.5,0.5644]
[1739513633820,0.74022,2701.5,2701.4,0.5412]
[1739513634517,0.74025,2701.4,2701.3,3.7877]
[1739513634819,1.33635,2701.4,2701.3,3.7877]
[1739513635611,1.33635,2701.4,2701.3,0.5799]
[1739513636920,1.33635,2701.4,2701.3,0.87798688]
[1739513637124,0.74027,2701.3,2701.2,0.00555453]
[1739513639214,1.33636,2701.4,2701.2,0.00555453]
[1739513639420,0.5961,2701.4,2701.3,0.74027]
[1739513639622,3.2078,2701.6,2701.2,0.00555453]
[1739513639820,3.2078,2701.6,2701.5,0.74022]
[1739513640316,1.609,2701.8,2701.3,2.90637538]
[1739513640518,1.609,2701.8,2701.6,0.74018]
[1739513640720,0.74015,2701.8,2701.7,0.5797]
[1739513642818,1.28465,2701.8,2701.7,0.5797]
[1739513652829,0.74022,2701.5,2701.4,0.556]
[1739513654426,3.2078,2701.6,2701.2,0.00555453]
[1739513654624,0.74028,2701.3,2701.2,0.00555453]
[1739513656130,1.32226,2701.4,2701.2,0.74585453]
[1739513656332,1.32226,2701.4,2701.3,0.5642]
[1739513656934,1.32225,2701.4,2701.3,0.5642]
[1739513657132,0.74021,2701.6,2701.3,1.30445]
[1739513657432,1.28245,2701.8,2701.3,3.47057538]
[1739513657635,0.5423,2701.8,2701.3,3.47057538]
[1739513657828,0.74017,2701.7,2701.3,3.47057538]
[1739513658028,0.74019,2701.6,2701.4,0.74023]
[1739513658229,0.74019,2701.6,2701.5,1.1733]
[1739513660935,3.94799,2701.6,2701.5,0.5839]
[1739513661132,0.74025,2701.4,2701.3,1.1308]
[1739513661328,3.7586,2701.6,2701.2,0.00555453]
[1739513661538,0.74028,2701.3,2701.2,0.00555453]
[1739513666039,3.94808,2701.3,2701.2,0.00555453]
[1739513667436,5.55508,2701.3,2701.2,0.00555453]
[1739513675441,3.94808,2701.3,2701.2,0.00555453]
[1739513676130,4.49788,2701.3,2701.2,0.00555453]
[1739513678342,1.29008,2701.3,2701.2,0.00555453]
[1739513678543,4.49788,2701.3,2701.2,0.00555453]
[1739513681233,3.94808,2701.3,2701.2,0.00555453]
[1739513681438,3.2078,2701.3,2701.2,0.00555453]
[1739513681738,3.94808,2701.3,2701.2,1.30856431]
[1739513681944,0.74026,2701.4,2701.2,2.04886431]
[1739513682246,0.74026,2701.4,2701.3,1.6581]
[1739513682448,3.94802,2701.6,2701.3,2.39837]
[1739513682746,3.94802,2701.6,2701.4,1.30300978]
[1739513682947,3.2078,2701.6,2701.4,2.04323978]
[1739513683736,3.2078,2701.6,2701.4,0.74023]
[1739513684346,3.948,2701.6,2701.4,0.74023]
[1739513684651,3.948,2701.6,2701.3,1.6581]
[1739513684841,3.948,2701.6,2701.3,2.39836]
[1739513686753,3.948,2701.6,2701.4,0.74025]
[1739513687048,3.948,2701.6,2701.3,2.39836]
[1739513688446,3.948,2701.6,2701.4,0.74025]
[1739513689454,3.948,2701.6,2701.3,1.6581]
[1739513689652,3.948,2701.6,2701.3,2.39836]
[1739513690253,0.74022,2701.5,2701.3,1.6581]
[1739513690443,0.74022,2701.5,2701.3,2.39837]
[1739513691849,3.2078,2701.6,2701.3,1.6581]
[1739513691850,0.74025,2701.4,2701.3,1.6581]
[1739513694854,0.74028,2701.3,2701.2,0.00555453]
[1739513695054,1.90788,2701.3,2701.2,0.00555453]
[1739513696057,5.11568,2701.3,2701.2,0.00555453]
[1739513697657,3.94808,2701.3,2701.2,0.00555453]
[1739513698656,4.53198,2701.3,2701.2,0.00555453]
[1739513701163,3.7917,2701.3,2701.2,0.00555453]
[1739513701357,6.12798,2701.3,2701.2,0.00555453]
[1739513701559,3.2078,2701.3,2701.2,0.00555453]
[1739513702466,3.94808,2701.3,2701.2,0.00555453]
[1739513703564,3.2078,2701.3,2701.2,0.00555453]
[1739513703764,3.94808,2701.3,2701.2,0.00555453]
[1739513703970,3.2078,2701.3,2701.2,0.00555453]
[1739513704266,3.94808,2701.3,2701.2,0.00555453]
[1739513704662,3.2078,2701.3,2701.2,0.00555453]
[1739513705070,3.94807,2701.3,2701.2,0.00555453]
[1739513709375,5.65077,2701.3,2701.2,0.00555453]
[1739513721687,3.7852,2701.3,2701.2,0.00555453]
[1739513721890,3.2078,2701.3,2701.2,0.00555453]
[1739513722191,3.94807,2701.3,2701.2,0.00555453]
[1739513722489,0.74027,2701.4,2701.2,1.31005453]
[1739513722690,2.33423,2701.5,2701.3,0.74027]
[1739513722887,3.2078,2701.6,2701.4,1.1506]
[1739513723188,3.2078,2701.6,2701.4,1.89084]
[1739513723584,3.2078,2701.6,2701.5,0.74022]
[1739513723787,3.2078,2701.6,2701.4,1.1506]
[1739513723987,3.2078,2701.6,2701.4,1.89084]
[1739513724591,3.2078,2701.6,2701.4,1.1506]
[1739513724792,0.74022,2701.5,2701.4,1.1506]
[1739513725191,3.948,2701.6,2701.4,1.1506]
[1739513725391,3.2078,2701.6,2701.4,1.1506]
[1739513725694,3.2078,2701.6,2701.4,1.89083]
[1739513725893,3.2078,2701.6,2701.4,1.1506]
[1739513726090,0.74022,2701.5,2701.4,1.1506]
[1739513727491,3.94801,2701.6,2701.4,1.1506]
[1739513728097,3.94801,2701.6,2701.4,1.89084]
[1739513729898,3.2078,2701.6,2701.4,1.1506]
[1739513730098,0.74016,2701.8,2701.5,0.7402]
[1739513730297,0.74012,2701.9,2701.4,4.3584]
[1739513731001,0.74012,2701.9,2701.6,0.74017]
[1739513731392,4.8018,2702.3,2701.7,3.7718]
[1739513731700,4.8018,2702.3,2701.9,2.91177229]
[1739513731897,0.74004,2702.2,2702.0,1.29797]
[1739513732097,0.74004,2702.2,2702.0,1.85297]
[1739513732296,0.74004,2702.2,2702.1,0.564]
[1739513733900,4.8018,2702.3,2702.1,0.564]
[1739513734103,0.74003,2702.2,2702.1,0.564]
[1739513735204,5.54181,2702.3,2702.1,0.564]
[1739513735399,3.2078,2702.3,2702.1,0.564]
[1739513735609,3.9478,2702.3,2702.1,1.30405]
[1739513735904,0.74003,2702.2,2702.1,0.564]
[1739513737301,3.2078,2702.3,2701.7,3.2078]
[1739513737501,0.74012,2701.9,2701.8,0.5705]
[1739513738203,0.74019,2701.6,2701.4,3.2078]
[1739513738407,0.74017,2701.7,2701.5,1.31072]
[1739513738705,3.7857,2702.0,2701.5,1.31071]
[1739513738908,0.74016,2701.8,2701.5,1.31071]
[1739513739398,3.7857,2702.0,2701.5,0.5705]
[1739513739601,0.74019,2701.6,2701.5,0.5705]
[1739513739799,3.7857,2702.0,2701.5,0.5705]
[1739513740108,0.74019,2701.7,2701.5,0.5705]
[1739513741403,0.74019,2701.6,2701.5,0.5705]
[1739513742109,0.74018,2701.7,2701.5,0.5705]
[1739513742304,0.74016,2701.8,2701.5,1.3107]
[1739513743405,0.74018,2701.7,2701.5,0.5705]
[1739513744007,3.7857,2702.0,2701.5,1.31072]
[1739513744313,0.74015,2701.8,2701.5,1.31072]
[1739513744712,0.74015,2701.8,2701.6,0.74019]
[1739513745216,0.74013,2701.9,2701.6,0.74019]
[1739513745605,3.7857,2702.0,2701.6,0.74019]
[1739513745805,0.74015,2701.8,2701.6,0.74019]
[1739513746911,3.7857,2702.0,2701.5,0.5705]
[1739513747410,0.74019,2701.6,2701.5,0.5705]
[1739513748806,0.74018,2701.7,2701.5,1.31071]
[1739513749910,3.7857,2702.0,2701.5,0.5705]
[1739513750109,0.74019,2701.6,2701.5,0.5705]
[1739513754417,5.63597,2702.0,2701.4,0.5765]
[1739513754715,0.74022,2701.5,2701.4,0.5765]
[1739513755107,0.74025,2701.4,2701.3,1.1735]
[1739513756209,0.74025,2701.4,2701.3,1.91377]
[1739513756409,0.74025,2701.4,2701.3,1.1735]
[1739513759912,0.74025,2701.4,2701.3,1.91377]
[1739513760617,0.74025,2701.4,2701.3,1.1735]
[1739513761117,1.7499,2701.6,2701.3,1.1735]
[1739513761319,0.74025,2701.4,2701.3,1.1735]
[1739513761711,0.74025,2701.4,2701.3,2.47635247]
[1739513762418,1.7499,2701.6,2701.3,2.47635247]
[1739513762609,0.74025,2701.4,2701.3,3.21662247]
[1739513763216,0.74023,2701.5,2701.3,3.21662247]
[1739513763618,1.183,2701.6,2701.3,2.47635247]
[1739513763926,3.2078,2701.7,2701.5,2.04307247]
[1739513764224,3.2078,2701.7,2701.3,2.47635247]
[1739513764420,0.74023,2701.5,2701.3,3.21661247]
[1739513764618,3.2078,2701.7,2701.3,3.21661247]
[1739513764823,0.74022,2701.5,2701.3,3.21661247]
[1739513765020,3.2078,2701.7,2701.3,2.47635247]
[1739513765223,0.74023,2701.5,2701.3,3.21662247]
[1739513765723,0.74025,2701.4,2701.3,1.1735]
[1739513765914,1.29485,2701.4,2701.3,1.1735]
[1739513767621,1.29485,2701.4,2701.3,0.5894]
[1739513768333,0.74027,2701.3,2701.2,0.56045453]
[1739513768815,3.94807,2701.3,2701.2,0.00555453]
[1739513769411,5.54207,2701.3,2701.2,0.00555453]
[1739513769625,0.74038,2700.9,2700.8,3.2078]
[1739513770019,0.74037,2701.0,2700.8,3.2078]
[1739513770423,0.58,2700.9,2700.7,1.87145247]
[1739513770617,1.32041,2700.9,2700.7,1.87145247]
[1739513771825,1.32041,2700.9,2700.7,0.5686]
[1739513774128,1.32041,2700.9,2700.7,1.30903]
[1739513774624,0.5598,2701.0,2700.8,0.74041]
[1739513774928,0.5598,2701.0,2700.7,0.5686]
[1739513774929,0.00555453,2701.1,2700.9,0.5796]
[1739513775131,0.74036,2701.0,2700.9,0.5796]
[1739513775531,0.00555453,2701.1,2700.9,0.5796]
[1739513775731,0.74589453,2701.1,2700.9,1.31997]
[1739513776135,0.74589453,2701.1,2700.9,0.5796]
[1739513776334,0.74036,2701.0,2700.9,0.5796]
[1739513776533,0.74589453,2701.1,2700.9,1.31998]
[1739513777330,0.74589453,2701.1,2701.0,0.74036]
[1739513777331,0.00555453,2701.1,2701.0,0.74036]
[1739513777534,0.00555453,2701.1,2700.9,0.5796]
[1739513777732,0.74589453,2701.1,2700.9,1.31997]
[1739513778230,0.00555453,2701.1,2701.0,0.74036]
[1739513791329,0.00555453,2701.1,2701.0,3.65281446]
[1739513791536,3.2078,2701.6,2701.5,0.74022]
[1739513791735,3.2078,2701.6,2701.5,2.04287896]
[1739513792033,3.94799,2701.6,2701.5,1.30265896]
[1739513792431,3.94799,2701.6,2701.5,1.88325896]
[1739513792845,0.74024,2701.5,2701.3,2.04291896]
[1739513793738,0.74024,2701.5,2701.3,0.74026]
[1739513794138,3.2078,2701.6,2701.2,0.5806]
[1739513794434,3.948,2701.6,2701.4,0.74024]
[1739513795238,3.2078,2701.6,2701.2,0.5806]
[1739513795439,1.32196,2701.8,2701.3,3.2078]
[1739513795642,1.32196,2701.8,2701.6,0.74018]
[1739513797537,0.5818,2701.8,2701.4,0.5732]
[1739513797737,1.32194,2701.8,2701.6,0.74018]
[1739513799741,0.74017,2701.7,2701.6,0.74018]
[1739513800436,1.32196,2701.8,2701.6,0.74018]
[1739513809259,0.5818,2701.8,2701.4,0.5732]
[1739513809458,1.32194,2701.8,2701.7,0.74016]
[1739513809863,1.32194,2701.8,2701.4,0.5732]
[1739513810064,1.32194,2701.8,2701.6,0.74017]
[1739513810456,0.5818,2701.8,2701.4,0.5732]
[1739513810662,0.74021,2701.6,2701.4,1.31344]
[1739513811859,0.74022,2701.5,2701.4,1.31344]
[1739513812463,0.7402,2701.6,2701.4,1.31344]
[1739513813565,0.74021,2701.6,2701.4,1.31344]
[1739513813864,0.74022,2701.5,2701.4,1.31344]
[1739513814363,0.74022,2701.5,2701.4,0.5732]
[1739513815159,0.5818,2701.8,2701.4,0.5732]
[1739513815359,0.74022,2701.5,2701.4,0.5732]
[1739513815957,1.88469568,2701.8,2701.2,2.62377568]
[1739513816164,1.31405,2701.4,2701.2,3.17447568]
[1739513816363,0.5738,2701.4,2701.2,2.43419568]
[1739513816564,0.74027,2701.3,2701.2,2.43419568]
[1739513817766,0.74033,2701.1,2701.0,2.936]
[1739513817966,2.04322568,2701.1,2701.0,2.936]
[1739513818555,0.74041,2700.8,2700.7,3.2078]
[1739513819262,1.27911,2700.8,2700.7,3.2078]
[1739513819459,0.5387,2700.8,2700.7,3.2078]
[1739513819661,0.5387,2700.8,2700.6,1.03935351]
[1739513819861,4.3303,2701.0,2700.8,0.74041]
[1739513820067,4.3303,2701.0,2700.9,0.74038]
[1739513820263,4.3303,2701.0,2700.8,1.30289568]
[1739513820462,4.3303,2701.0,2700.8,1.87169568]
[1739513821674,4.3303,2701.0,2700.8,1.30921]
[1739513823375,0.74038,2700.9,2700.8,0.5688]
[1739513823569,1.86287,2701.0,2700.8,0.5688]
[1739513823868,1.1225,2701.0,2700.8,1.30921]
[1739513824064,0.5511,2701.0,2700.9,0.74038]
[1739513824270,0.5824,2701.4,2701.1,0.74031]
[1739513824470,1.32266,2701.4,2701.2,0.5892]
[1739513824767,1.33047,2701.3,2701.2,0.5892]
[1739513825174,0.5902,2701.3,2700.8,3.48099194]
[1739513825471,0.74033,2701.1,2701.0,0.5892]
[1739513825673,0.74037,2701.0,2700.8,0.5688]
[1739513825875,0.7404,2700.9,2700.7,3.2078]
[1739513826073,0.5902,2700.8,2700.7,3.2078]
[1739513826467,0.5902,2700.8,2700.7,3.94824]
[1739513826870,1.594,2701.2,2700.7,3.7494]
[1739513827070,2.1652,2701.2,2701.0,0.74034]
[1739513827374,2.90553,2701.2,2700.9,0.74038]
[1739513827569,2.90553,2701.2,2700.9,1.28198]
[1739513828265,2.1652,2701.2,2701.0,0.74034]
[1739513828468,0.5712,2701.2,2700.9,0.5416]
[1739513828868,1.31151,2701.2,2700.9,1.28197]
[1739513829071,0.5712,2701.2,2700.9,0.5416]
[1739513829372,0.5712,2701.2,2701.0,0.74034]
[1739513829567,0.5712,2701.2,2700.9,1.28197]
[1739513829770,0.74033,2701.1,2700.9,1.28197]
[1739513830065,1.31152,2701.2,2700.9,1.28197]
[1739513830470,0.74033,2701.1,2700.9,0.5416]
[1739513830866,1.86672,2701.2,2700.9,1.28197]
[1739513831272,1.1264,2701.2,2700.9,1.28197]
[1739513831472,0.74033,2701.1,2700.9,1.28197]
[1739513831674,1.86672,2701.2,2700.9,1.28197]
[1739513832070,3.2078,2701.6,2700.9,0.5416]
[1739513832277,0.74024,2701.5,2701.2,0.74029]
[1739513832571,0.74024,2701.5,2701.3,1.7103]
[1739513832771,0.74025,2701.4,2701.3,1.7103]
[1739513832971,0.74031,2701.2,2700.8,2.91219194]
[1739513833270,0.74036,2701.0,2700.9,1.6817]
[1739513833466,0.74034,2701.1,2700.9,1.86848]
[1739513833674,0.74034,2701.1,2700.9,1.1281]
[1739513833882,0.5648,2701.0,2700.9,1.1281]
[1739513834066,1.30516,2701.0,2700.9,1.1281]
[1739513834271,1.30516,2701.0,2700.9,0.5872]
[1739513834777,0.5648,2701.0,2700.9,0.5872]
[1739513835075,1.30516,2701.0,2700.9,0.5872]
[1739513835571,0.5648,2701.0,2700.9,1.32758]
[1739513835776,0.7403,2701.2,2701.0,0.74035]
[1739513835973,0.5929,2701.2,2701.0,0.74036]
[1739513836369,1.33321,2701.2,2701.0,0.74035]
[1739513836673,0.5929,2701.2,2701.0,0.74035]
[1739513837573,3.2078,2701.3,2700.9,0.5872]
[1739513837773,3.94808,2701.3,2701.0,0.74036]
[1739513838381,0.7403,2701.2,2701.0,0.74036]
[1739513838677,1.3332,2701.2,2701.0,0.74036]
[1739513838878,0.5929,2701.2,2700.9,0.5872]
[1739513839070,0.74036,2701.0,2700.9,0.5872]
[1739513839272,0.5501,2701.1,2700.9,0.5872]
[1739513839473,1.29045,2701.1,2700.9,0.5872]
[1739513839668,1.29045,2701.1,2700.9,1.32757]
[1739513840176,0.5501,2701.1,2700.9,0.5872]
[1739513840477,0.5929,2701.2,2701.0,0.74036]
[1739513840671,0.5929,2701.2,2701.1,0.74033]
[1739513840873,0.5929,2701.2,2700.9,0.5872]
[1739513841072,0.74033,2701.1,2700.9,1.32757]
[1739513841276,0.74033,2701.1,2700.9,0.5872]
[1739513842086,1.33322,2701.2,2700.9,1.32756]
[1739513842281,1.33322,2701.2,2701.0,0.74035]
[1739513842583,0.5929,2701.2,2700.9,0.5872]
[1739513842784,0.74035,2701.1,2700.9,1.32757]
[1739513843585,1.33322,2701.2,2701.0,0.74036]
[1739513844582,0.5929,2701.2,2700.9,0.5872]
[1739513844790,0.5929,2701.2,2701.1,0.74033]
[1739513845579,1.3332,2701.2,2701.0,0.74033]
[1739513845785,0.5929,2701.2,2700.9,0.5872]
[1739513845985,0.74035,2701.1,2700.9,1.32757]
[1739513848390,0.5929,2701.2,2700.9,0.5872]
[1739513848591,1.33322,2701.2,2701.0,0.74035]
[1739513851794,1.33322,2701.2,2700.9,1.89038722]
[1739513852093,0.5929,2701.2,2701.1,0.74033]
[1739513852394,1.3332,2701.2,2701.1,0.74033]
[1739513852587,0.5929,2701.2,2701.1,0.74033]
[1739513857190,1.33321,2701.2,2701.0,0.74033]
[1739513858096,0.5929,2701.2,2701.1,0.74033]
[1739513858492,3.2078,2701.3,2701.2,0.7403]
[1739513859295,3.2078,2701.3,2700.9,1.89038722]
[1739513859495,3.94807,2701.3,2701.1,0.74031]
[1739513859689,3.94807,2701.3,2701.2,0.5791]
[1739513859891,1.1128,2701.4,2701.2,1.3194]
[1739513860092,1.1128,2701.4,2701.3,0.74027]
[1739513860299,1.1128,2701.4,2701.3,1.30607]
[1739513862102,3.2078,2701.6,2701.5,0.74022]
[1739513862599,3.94801,2701.6,2701.4,0.74024]
[1739513862802,4.53081,2701.6,2701.4,0.74024]
[1739513864109,3.7906,2701.6,2701.2,1.1212]
[1739513864399,1.30353,2701.5,2701.3,0.74027]
[1739513864604,1.86648722,2701.5,2701.2,1.1212]
[1739513864904,2.04345722,2701.3,2701.0,3.2078]
[1739513865102,1.1409,2701.2,2701.1,0.74032]
[1739513865603,1.1409,2701.2,2701.0,3.2078]
[1739513865804,1.88121,2701.2,2701.0,3.94814]
[1739513866101,1.1409,2701.2,2701.1,0.74033]
[1739513866302,1.1409,2701.2,2701.0,3.2078]
[1739513866497,1.1409,2701.2,2701.0,3.94814]
[1739513867099,1.1409,2701.2,2700.9,0.5566]
[1739513867100,0.74034,2701.1,2700.9,0.5566]
[1739513867302,1.31394,2701.1,2700.9,0.5566]
[1739513867501,2.61712722,2701.1,2700.9,0.5566]
[1739513867704,2.61712722,2701.1,2700.8,0.7404]
[1739513867904,1.87678722,2701.1,2700.7,6.20568722]
[1739513868107,0.74037,2701.0,2700.7,6.20568722]
[1739513868306,2.61712722,2701.1,2700.8,0.7404]
[1739513869204,1.87678722,2701.1,2700.9,0.74037]
[1739513869902,1.87678722,2701.1,2700.7,6.20568722]
[1739513870404,2.61711722,2701.1,2700.8,0.74039]
[1739513870605,1.87678722,2701.1,2700.7,6.20568722]
[1739513870804,1.87678722,2701.1,2700.9,0.74037]
[1739513871007,2.61712722,2701.1,2700.8,0.74039]
[1739513871805,2.61712722,2701.1,2700.7,6.20568722]
[1739513871806,2.61712722,2701.1,2700.9,0.74038]
[1739513872704,1.87678722,2701.1,2700.8,0.7404]
[1739513872909,1.87678722,2701.1,2700.9,0.74037]
[1739513873112,1.87678722,2701.1,2700.9,0.74036]
[1739513873407,0.5736,2701.1,2700.7,6.20568722]
[1739513873601,0.5736,2701.1,2701.0,0.74036]
[1739513873910,1.1409,2701.2,2701.1,0.74033]
[1739513874105,1.1409,2701.2,2701.1,2.04351722]
[1739513874602,1.1409,2701.2,2701.1,1.30318722]
[1739513875000,1.1409,2701.2,2701.1,1.85188722]
[1739513875402,0.5878,2701.2,2701.1,2.59221722]
[1739513876711,1.3281,2701.2,2701.1,1.85188722]
[1739513877211,1.3281,2701.2,2701.1,2.40688722]
[1739513877411,0.5878,2701.2,2701.1,3.14721722]
[1739513878005,0.5878,2701.2,2701.1,2.40688722]
[1739513878302,1.3281,2701.2,2701.1,2.40688722]
[1739513878908,0.5878,2701.2,2701.1,2.40688722]
[1739513879125,0.5878,2701.2,2701.1,3.14721722]
[1739513880113,0.5878,2701.2,2701.1,1.84403]
[1739513880413,0.5878,2701.2,2701.1,1.1037]
[1739513880707,0.5878,2701.2,2701.1,1.84403]
[1739513883520,0.5878,2701.2,2701.1,1.1037]
[1739513883711,1.3281,2701.2,2701.1,1.1037]
[1739513884619,0.5878,2701.2,2701.1,1.84403]
[1739513885220,1.3281,2701.2,2701.1,1.1037]
[1739513887718,0.5878,2701.2,2701.1,1.84403]
[1739513888120,1.3281,2701.2,2701.1,1.84403]
[1739513888520,0.5878,2701.2,2701.1,1.84403]
[1739513888719,0.5533,2701.4,2701.1,1.1037]
[1739513889024,0.5533,2701.4,2701.2,0.74029]
[1739513889025,1.85015,2701.4,2701.2,0.74029]
[1739513889223,1.85015,2701.4,2701.2,1.33009]
[1739513889630,0.74018,2701.7,2701.4,0.74022]
[1739513889830,0.74018,2701.7,2701.5,1.28092]
[1739513890230,0.74018,2701.7,2701.6,0.5766]
[1739513890930,0.74018,2701.7,2701.6,1.1151]
[1739513891830,2.88975,2701.8,2701.6,1.85528]
[1739513892026,1.29675,2701.8,2701.6,1.85528]
[1739513892328,0.5566,2701.8,2701.7,0.74016]
[1739513892932,0.74016,2701.7,2701.6,1.1151]
[1739513893633,1.29675,2701.8,2701.6,1.1151]